bitfinex/quotes_ETHUSD_20241203
["timestamp","ask_amount","ask_price","bid_price","bid_amount"]
[1733239775811,0.26135001,3576.8,3576.1,2.79632]
[1733239776047,0.55,3576.9,3576.2,2.79625]
[1733239776255,1.6519,3577.0,3575.5,6.69042114]
[1733239776560,1.6519,3577.0,3576.6,2.79589]
[1733239777153,0.26138372,3576.9,3575.5,3.89361114]
[1733239777452,1.6519,3577.0,3576.4,2.79606]
[1733239778116,1.6519,3577.0,3575.5,3.89361114]
[1733239778416,1.6519,3577.0,3576.6,2.79588]
[1733239778662,1.6519,3577.0,3575.5,6.69041114]
[1733239778862,1.6519,3577.0,3575.4,0.55294199]
[1733239778863,2.79639,3576.1,3575.4,0.55294199]
[1733239779031,2.1125,3575.8,3574.7,2.79737]
[1733239779352,2.1125,3575.8,3574.8,2.79732]
[1733239779524,2.1125,3575.8,3575.0,2.79719]
[1733239779525,1.4324388,3575.7,3575.0,2.79719]
[1733239779723,0.52306585,3575.6,3575.0,2.79719]
[1733239779925,0.26152026,3575.5,3575.0,2.79719]
[1733239780154,0.4909,3575.7,3575.0,2.79719]
[1733239780330,0.26134828,3575.6,3575.0,2.79719]
[1733239780660,0.37010629,3575.6,3574.6,0.55753165]
[1733239780817,1.5625,3575.8,3574.6,0.55753165]
[1733239781015,0.52268991,3575.7,3575.3,2.79696]
[1733239781216,0.26134432,3575.6,3575.3,2.79696]
[1733239781460,1.5625,3575.8,3575.4,2.79688]
[1733239781750,1.5625,3575.8,3575.5,2.7968]
[1733239782053,1.5625,3575.8,3574.7,1.537]
[1733239782253,1.5625,3575.8,3575.5,2.7968]
[1733239782552,1.5625,3575.8,3575.1,2.79706]
[1733239782961,1.5625,3575.8,3574.7,0.56930575]
[1733239783117,1.5625,3575.8,3574.3,1.5644]
[1733239783317,1.5625,3575.8,3575.1,2.79708]
[1733239783630,0.18236225,3575.7,3575.1,2.79708]
[1733239784064,0.18236225,3575.7,3574.6,0.5506051]
[1733239784216,0.18236225,3575.7,3574.7,2.79743]
[1733239784418,0.18236225,3575.7,3574.6,0.5506051]
[1733239784654,0.18236225,3575.7,3574.8,2.79729]
[1733239784861,0.22669888,3575.6,3574.8,2.79729]
[1733239785148,0.22669888,3575.6,3574.9,2.79725]
[1733239785747,3.98421455,3576.9,3576.8,35.08599272]
[1733239785981,15.20095112,3576.9,3576.8,22.10524349]
[1733239786264,19.85990653,3576.9,3576.8,20.70734349]
[1733239786416,19.85990653,3576.9,3576.8,17.8451335]
[1733239786616,19.71354706,3576.9,3576.8,17.8451335]
[1733239786861,20.14849216,3576.9,3576.8,17.8451335]
[1733239787070,18.35656873,3576.9,3576.8,16.78898954]
[1733239787248,19.29577978,3576.9,3576.8,16.78898954]
[1733239787417,20.14802684,3576.9,3576.8,16.78898954]
[1733239788038,19.71320691,3576.9,3576.8,16.78898954]
[1733239788357,19.18143103,3576.9,3576.8,16.78898954]
[1733239788557,19.71297863,3576.9,3576.8,16.78898954]
[1733239788968,20.14779856,3576.9,3576.8,16.78898954]
[1733239789117,3.0,3576.4,3574.5,0.57109742]
[1733239789319,11.19136316,3576.9,3574.5,0.57109742]
[1733239789320,2.79658,3575.8,3574.5,0.57109742]
[1733239789660,0.55684115,3575.7,3574.5,0.57109742]
[1733239789870,0.52187677,3575.6,3574.5,0.57109742]
[1733239790073,0.26089196,3575.5,3574.5,0.57109742]
[1733239790623,0.26098481,3575.6,3574.5,0.57109742]
[1733239790624,0.26089196,3575.6,3574.5,0.57109742]
[1733239790859,0.26089196,3575.5,3574.5,0.57109742]
[1733239791067,0.26089196,3575.6,3574.5,0.57109742]
[1733239791419,0.29585633,3575.5,3574.5,0.57109742]
[1733239791623,0.03496437,3575.5,3574.5,0.57109742]
[1733239792369,0.29585633,3575.5,3574.5,0.57109742]
[1733239792663,2.79697,3575.3,3574.0,1.6089]
[1733239792969,2.79724,3575.0,3573.6,1.7624]
[1733239793126,2.79724,3575.0,3573.6,1.93864]
[1733239793127,2.83221454,3575.0,3573.6,1.93864]
[1733239793324,2.79712,3575.2,3573.9,0.1]
[1733239793649,3.08049661,3575.3,3573.9,0.1]
[1733239793835,0.55671681,3575.2,3573.9,0.1]
[1733239794040,0.52174396,3575.2,3573.9,0.1]
[1733239794264,3.35344503,3575.6,3574.4,0.1]
[1733239794463,2.79697,3575.3,3573.8,0.1]
[1733239794664,0.03496923,3575.2,3573.8,0.93794272]
[1733239794884,2.79718,3575.1,3573.8,0.83794272]
[1733239795087,2.79685,3575.5,3573.8,0.83794272]
[1733239795088,0.4172465,3575.4,3573.8,0.83794272]
[1733239795384,2.79711,3575.2,3573.6,2.50063058]
[1733239795592,0.52142423,3575.1,3573.6,0.83823058]
[1733239795752,2.79739,3574.8,3573.4,0.1]
[1733239795948,3.08049661,3575.3,3573.4,0.1]
[1733239795949,2.79755,3574.6,3573.5,0.54647684]
[1733239796271,0.03497448,3574.5,3573.5,0.54647684]
[1733239796581,4.24736159,3575.3,3573.7,0.1]
[1733239796582,0.55633218,3575.0,3573.7,0.1]
[1733239796884,0.03497448,3575.0,3573.7,0.1]
[1733239797091,3.91466279,3575.3,3573.7,0.32619768]
[1733239797092,0.5213577,3575.2,3573.7,0.32619768]
[1733239797292,0.26067885,3575.1,3573.7,3.40669429]
[1733239797448,0.5213577,3575.3,3573.7,3.40669429]
[1733239797643,0.5213577,3575.3,3574.2,1.5042]
[1733239797844,0.26067885,3575.3,3574.2,1.5042]
[1733239798142,0.26067885,3575.5,3574.2,1.5042]
[1733239798143,0.5213577,3575.4,3574.3,0.1]
[1733239798351,0.03496778,3575.3,3574.3,0.1]
[1733239798987,0.55632548,3575.3,3574.3,0.1]
[1733239799147,0.55632548,3575.3,3573.8,0.1]
[1733239799349,0.26067885,3575.2,3574.3,0.1]
[1733239799548,3.31817513,3575.4,3574.3,0.1]
[1733239799860,0.52127513,3575.3,3574.3,0.1]
[1733239800063,0.52127513,3575.6,3574.3,0.1]
[1733239800374,0.55624446,3575.5,3574.3,0.1]
[1733239800549,0.55624446,3575.5,3573.7,0.66324539]
[1733239800550,3.11546594,3575.5,3573.7,0.66324539]
[1733239800749,3.26067885,3575.4,3573.7,0.56324539]
[1733239801053,2.79731,3574.9,3573.3,1.6614]
[1733239801291,3.08049661,3575.1,3573.8,0.1]
[1733239801451,3.08049661,3575.1,3573.5,0.56878991]
[1733239801452,2.79731,3574.9,3573.5,0.56878991]
[1733239801653,2.79715,3575.1,3573.8,0.1]
[1733239801848,0.03497243,3575.1,3573.8,0.1]
[1733239802063,0.52124976,3575.1,3573.8,0.1]
[1733239802594,0.52124976,3575.2,3573.9,1.5664]
[1733239802900,3.11546921,3575.1,3573.9,1.5664]
[1733239803082,0.52124976,3575.0,3573.9,1.5664]
[1733239803592,0.52124976,3575.3,3574.0,2.79791]
[1733239803891,0.52124976,3575.3,3574.5,0.1]
[1733239804052,1.16686498,3575.9,3574.8,0.1]
[1733239804053,0.52124976,3575.7,3574.8,0.1]
[1733239804252,0.52124976,3575.8,3575.3,0.1]
[1733239804448,2.33508306,3576.4,3575.9,4.43179]
[1733239804449,0.52124976,3576.0,3575.9,4.43179]
[1733239804652,0.52124976,3576.3,3576.2,0.1]
[1733239804886,1.4274889,3576.6,3576.3,0.1]
[1733239805098,0.26062392,3576.6,3575.4,0.1]
[1733239805259,3.08049661,3576.5,3575.3,0.1]
[1733239805462,0.29567519,3576.4,3575.0,1.6624]
[1733239805670,0.5214444,3576.3,3575.2,0.1]
[1733239805896,0.2607222,3576.2,3575.2,0.1]
[1733239806112,0.2607222,3576.2,3575.2,3.186742]
[1733239806312,0.2607222,3576.2,3575.5,0.1]
[1733239806606,0.2607222,3576.7,3575.3,1.524]
[1733239806607,0.5214444,3576.6,3575.3,1.624]
[1733239806815,3.0,3576.8,3575.3,1.624]
[1733239806816,0.5214444,3576.5,3575.3,1.624]
[1733239806982,0.5214444,3576.4,3575.3,1.624]
[1733239807304,0.86900657,3576.7,3575.3,1.624]
[1733239807305,0.5214444,3576.3,3575.3,1.624]
[1733239807514,0.5214444,3576.2,3575.3,1.624]
[1733239807814,0.2607222,3576.1,3575.5,0.1]
[1733239807971,3.0,3576.8,3575.8,0.1]
[1733239807972,0.52186246,3576.4,3575.8,0.1]
[1733239808303,0.52198598,3576.7,3576.0,0.5657208]
[1733239808512,0.5569366,3576.6,3576.0,0.5657208]
[1733239808687,0.52211009,3576.5,3576.0,0.5657208]
[1733239808883,8.29466671,3577.3,3576.0,0.5657208]
[1733239808884,0.86993417,3576.9,3576.0,0.5657208]
[1733239809084,0.52211808,3576.8,3576.0,0.5657208]
[1733239809415,0.55,3576.6,3576.0,0.5657208]
[1733239809708,3.0,3577.2,3576.0,0.5657208]
[1733239809709,0.55,3576.4,3576.0,0.5657208]
[1733239810214,3.0,3577.2,3576.2,2.79624]
[1733239810215,0.52208406,3576.8,3576.2,2.79624]
[1733239810369,0.52199995,3577.1,3576.3,0.1]
[1733239810569,0.83497996,3577.6,3576.5,2.79602]
[1733239810814,0.55680521,3577.5,3576.4,0.1]
[1733239811037,0.52186064,3577.4,3576.4,2.89608]
[1733239811318,0.52164608,3577.3,3576.4,0.1]
[1733239811469,0.55659377,3577.2,3576.8,0.57316744]
[1733239811671,0.52164608,3577.1,3576.2,1.5725]
[1733239811871,0.03494771,3577.0,3576.4,0.56997603]
[1733239812183,0.55,3576.9,3576.4,0.1]
[1733239812383,0.55,3576.9,3576.5,2.79601]
[1733239812598,0.52164608,3577.3,3576.6,0.1]
[1733239812830,0.52164608,3577.6,3577.5,2.79524]
[1733239813028,1.92888263,3577.8,3577.5,2.79524]
[1733239813029,1.92888263,3577.8,3577.7,0.1]
[1733239813189,1.92888263,3577.8,3577.7,2.89509]
[1733239813746,1.92888263,3577.8,3577.7,4.44109]
[1733239814034,0.63026206,3578.2,3578.1,2.79477]
[1733239814232,0.63026206,3578.2,3578.1,4.44077]
[1733239814531,0.52004302,3579.2,3579.1,2.79399]
[1733239814532,1.75076442,3579.2,3579.1,2.79399]
[1733239815024,0.51993494,3579.9,3579.1,2.79399]
[1733239815025,0.51993494,3579.8,3579.1,2.79399]
[1733239815229,4.46337818,3580.0,3579.1,1.5009]
[1733239815471,4.46337818,3580.0,3579.2,0.1]
[1733239816094,4.46337818,3580.0,3579.6,2.79359]
[1733239816289,4.46337818,3580.0,3579.4,2.79375]
[1733239816601,4.46337818,3580.0,3579.7,2.79349]
[1733239816804,4.46337818,3580.0,3579.2,0.66727866]
[1733239817104,4.46337818,3580.0,3579.9,2.79337]
[1733239817707,4.46337818,3580.0,3579.9,4.40237]
[1733239818207,4.46337818,3580.0,3579.9,2.79337]
[1733239818736,4.46337818,3580.0,3579.5,1.5455]
[1733239818889,4.46337818,3580.0,3579.8,0.1]
[1733239819090,4.46337818,3580.0,3579.9,2.79337]
[1733239820032,4.46337818,3580.0,3579.9,0.1]
[1733239820202,4.46337818,3580.0,3579.9,2.79337]
[1733239820540,4.46337818,3580.0,3578.9,6.69165634]
[1733239820541,0.55,3579.9,3579.0,1.5114]
[1733239820751,0.55,3579.9,3578.0,0.2]
[1733239820752,0.55,3579.7,3578.6,0.1]
[1733239821043,0.55,3579.7,3579.0,0.55950859]
[1733239821463,0.55,3579.5,3579.0,2.79407]
[1733239821749,0.55,3579.5,3578.9,0.1]
[1733239821954,0.55,3579.5,3579.4,0.1]
[1733239822158,0.55,3579.5,3579.4,2.89376]
[1733239822447,4.46337818,3580.0,3579.7,0.1]
[1733239822620,4.46337818,3580.0,3579.7,2.89352]
[1733239822827,4.46337818,3580.0,3579.7,0.1]
[1733239823251,4.46337818,3580.0,3579.4,1.5688]
[1733239823424,4.46337818,3580.0,3579.6,2.79358]
[1733239823629,0.55,3579.9,3578.8,0.56006776]
[1733239823968,0.55,3579.9,3577.7,0.723633]
[1733239823969,3.55,3579.4,3578.4,0.56873494]
[1733239824109,0.55,3578.8,3578.4,0.56873494]
[1733239824440,0.55,3578.6,3578.2,0.1]
[1733239824637,0.55,3578.6,3578.5,2.79446]
[1733239825498,0.03492436,3580.3,3579.1,0.1]
[1733239825656,0.55,3579.9,3579.4,2.79375]
[1733239825974,0.03492067,3580.4,3579.3,0.1]
[1733239826178,3.34005045,3580.9,3579.3,0.1]
[1733239826179,0.54743045,3580.9,3579.3,0.1]
[1733239826380,0.03491666,3579.9,3578.8,0.1]
[1733239826582,0.03491666,3579.9,3579.1,0.1]
[1733239826804,0.74743045,3580.9,3579.1,0.1]
[1733239826805,2.793,3580.4,3579.3,2.79382]
[1733239826979,3.34007045,3580.9,3579.6,2.7936]
[1733239826980,2.79281,3580.7,3579.6,2.7936]
[1733239827293,0.54743045,3580.9,3579.9,2.89337]
[1733239827592,2.79229,3581.3,3579.9,2.89337]
[1733239827748,3.89751634,3581.5,3579.9,2.79337]
[1733239827749,0.03491469,3581.2,3579.9,2.79337]
[1733239827952,0.03491469,3581.2,3579.9,2.89337]
[1733239828147,3.89751634,3581.5,3579.9,2.89337]
[1733239828347,0.0349141,3581.4,3579.9,2.89337]
[1733239828552,2.79261,3580.9,3579.9,0.1]
[1733239828860,0.03491561,3580.8,3579.8,2.79343]
[1733239829062,0.03491561,3580.8,3579.9,2.89337]
[1733239829263,2.79272,3580.8,3579.7,0.1]
[1733239829484,3.0,3581.0,3579.9,2.79337]
[1733239829868,0.0349141,3580.9,3579.9,2.79337]
[1733239830076,2.8275041,3580.9,3579.7,0.1]
[1733239830277,3.0,3581.0,3579.9,2.79337]
[1733239830491,0.0349141,3580.9,3579.9,2.89337]
[1733239830664,3.93243044,3580.9,3579.9,2.79337]
[1733239830850,3.89751634,3580.9,3579.9,2.79337]
[1733239831276,5.01337818,3580.0,3579.9,2.79337]
[1733239832004,0.55,3579.9,3579.5,0.1]
[1733239832158,0.55,3579.9,3579.4,2.10803084]
[1733239832159,0.55,3579.9,3579.7,0.1]
[1733239832495,3.58491674,3579.9,3578.9,2.79415]
[1733239832866,3.58491674,3579.9,3579.2,2.79384]
[1733239832867,0.58491674,3579.9,3579.2,2.79384]
[1733239833067,0.55,3579.9,3579.2,2.79384]
[1733239833300,0.55,3579.9,3579.1,0.1]
[1733239833456,0.55,3579.7,3578.6,2.18987112]
[1733239833661,0.55,3579.5,3579.2,2.79391]
[1733239833965,0.55,3579.5,3579.4,2.79376]
[1733239834358,0.55,3579.5,3579.1,1.7053]
[1733239834557,0.55,3579.5,3578.4,2.79446]
[1733239834558,0.55,3579.3,3578.4,2.79446]
[1733239834765,0.55,3579.1,3578.3,2.79461]
[1733239835072,0.55,3579.1,3579.0,2.79407]
[1733239835394,0.55,3579.1,3578.8,2.79415]
[1733239835602,0.55,3579.1,3578.9,0.1]
[1733239835803,0.55,3579.1,3578.6,0.1]
[1733239836160,0.55,3579.1,3579.0,2.79407]
[1733239837825,0.55,3579.1,3579.0,3.528022]
[1733239838204,0.55,3579.1,3579.0,2.79407]
[1733239838700,0.55,3579.1,3579.0,0.1]
[1733239838908,0.51908635,3579.6,3579.0,0.1]
[1733239839115,0.25954323,3579.6,3579.0,0.1]
[1733239839325,0.25953805,3579.8,3579.1,2.79399]
[1733239839478,0.51965317,3579.7,3579.1,2.79399]
[1733239839674,0.25953805,3579.8,3579.5,0.1]
[1733239839917,0.25953805,3579.8,3579.7,2.79353]
[1733239840099,0.25953805,3579.8,3579.7,2.89353]
[1733239841419,0.80953805,3579.8,3579.7,2.89353]
[1733239841621,0.55,3579.8,3579.7,2.89353]
[1733239841827,0.55,3579.9,3579.8,2.79345]
[1733239842120,4.46337818,3580.0,3579.9,2.89337]
[1733239842579,4.72420758,3580.0,3579.9,2.89337]
[1733239843341,4.98530867,3580.0,3579.9,2.89337]
[1733239843480,5.82085735,3580.0,3579.9,2.89337]
[1733239843821,5.53530867,3580.0,3579.9,2.89337]
[1733239844024,6.37084245,3580.0,3579.9,2.89337]
[1733239844325,0.55,3579.9,3579.7,2.8935]
[1733239844626,0.55,3579.9,3579.8,2.79345]
[1733239844836,1.9085946,3579.9,3579.8,2.89345]
[1733239845139,1.9085946,3579.9,3579.8,2.79345]
[1733239845437,1.9085946,3579.9,3579.8,2.78425]
[1733239845722,1.8912946,3579.9,3579.8,2.78425]
[1733239845923,1.05523638,3579.9,3579.8,2.78425]
[1733239846145,1.05523638,3579.9,3579.8,3.342038]
[1733239846284,1.05523638,3579.9,3579.8,2.78425]
[1733239846631,1.89115949,3579.9,3579.3,0.1]
[1733239846788,1.35845949,3579.8,3579.4,0.1]
[1733239846982,1.35845949,3579.7,3579.0,2.89407]
[1733239847327,0.5327,3579.9,3579.4,0.1]
[1733239847328,1.35845949,3579.6,3579.4,0.1]
[1733239847542,0.55,3579.4,3578.7,1.6964]
[1733239847827,0.26126819,3579.6,3578.7,1.6964]
[1733239847828,0.55,3579.2,3579.0,0.1]
[1733239848022,0.55,3579.2,3579.1,2.79399]
[1733239848223,0.94066843,3579.2,3579.1,0.1]
[1733239848383,1.07259714,3579.2,3579.1,3.183399]
[1733239848582,0.52259714,3579.2,3579.1,4.728499]
[1733239848785,0.43541207,3579.9,3579.8,2.89345]
[1733239849141,0.26124347,3579.9,3579.8,2.89345]
[1733239849419,0.26124347,3579.9,3579.5,2.79362]
[1733239849625,4.46337818,3580.0,3579.6,0.55874]
[1733239849796,0.26122632,3579.9,3579.8,2.79337]
[1733239849996,4.46337818,3580.0,3579.8,2.79337]
[1733239850221,0.81122704,3579.9,3579.2,2.8006422]
[1733239850434,0.81122704,3579.9,3579.2,0.0067922]
[1733239850598,0.55,3579.7,3579.2,0.0067922]
[1733239850802,0.55,3579.7,3579.6,2.7936]
[1733239850982,0.55,3579.9,3579.8,2.79343]
[1733239851220,0.81122431,3579.9,3579.2,0.0067922]
[1733239851561,0.55,3579.5,3579.4,2.79376]
[1733239852062,0.81123656,3579.5,3579.4,2.79376]
[1733239852364,0.55,3579.4,3579.2,0.0067922]
[1733239852516,0.55,3579.7,3579.2,0.0067922]
[1733239852721,0.55,3579.5,3579.2,0.0067922]
[1733239852952,0.55,3579.3,3579.2,0.0067922]
[1733239853149,0.55,3579.3,3579.2,2.8007122]
[1733239853352,0.81125901,3579.3,3579.2,2.8007122]
[1733239853536,0.55,3579.3,3579.2,2.8007122]
[1733239854320,4.46337818,3580.0,3579.3,1.6322]
[1733239854516,4.46337818,3580.0,3579.9,2.79337]
[1733239854832,5.40398936,3580.0,3579.3,1.6322]
[1733239855168,0.52256887,3579.9,3579.4,2.79376]
[1733239855356,4.46337818,3580.0,3579.4,2.79376]
[1733239855357,0.26123067,3579.8,3579.4,2.79376]
[1733239855662,0.55,3579.8,3579.7,2.79353]
[1733239855880,4.46337818,3580.0,3579.7,2.79353]
[1733239855881,4.46337818,3580.0,3579.9,4.34157]
[1733239856156,0.4180812,3580.9,3580.8,2.79267]
[1733239856571,0.26119183,3580.9,3580.8,2.79267]
[1733239857620,0.83516533,3581.6,3581.1,2.79242]
[1733239857820,1.35716607,3581.5,3581.1,2.79242]
[1733239858071,0.55,3581.3,3579.9,2.79337]
[1733239858366,0.55,3581.1,3580.9,2.79254]
[1733239858536,0.55,3580.9,3580.7,2.79274]
[1733239858741,0.55,3580.9,3580.5,0.5674742]
[1733239858950,0.55,3580.9,3580.8,2.79267]
[1733239859131,0.67828726,3581.4,3581.2,2.79233]
[1733239859325,0.52166119,3581.3,3581.2,2.79233]
[1733239859634,0.26078131,3581.3,3581.2,2.79233]
[1733239860165,0.67793041,3581.6,3580.6,1.6525]
[1733239860380,0.26071882,3581.5,3581.4,2.7922]
[1733239860557,1.75076442,3581.7,3581.5,2.79205]
[1733239860735,0.52146172,3581.6,3581.5,2.79205]
[1733239861082,0.26073086,3581.6,3581.5,2.79205]
[1733239861436,1.75076442,3581.7,3581.6,2.79204]
[1733239861636,1.75076442,3581.7,3581.6,3.071244]
[1733239863048,2.30076442,3581.7,3581.6,3.071244]
[1733239863595,2.33508306,3581.8,3581.7,2.79197]
[1733239863940,2.33508306,3581.8,3581.7,8.22128634]
[1733239863941,3.06e-06,3581.8,3581.7,8.22128634]
[1733239864244,0.41615915,3583.0,3581.8,2.79189]
[1733239864245,1.44676781,3583.0,3581.8,2.79189]
[1733239864445,1.75076442,3583.2,3582.6,2.79119]
[1733239864782,0.41611337,3583.7,3581.9,2.79173]
[1733239864783,0.03488447,3583.1,3581.9,2.79173]
[1733239864949,2.79093,3583.1,3581.7,1.5318]
[1733239865151,2.79074,3583.3,3581.7,1.5318]
[1733239865371,1.16686498,3583.4,3581.7,1.5318]
[1733239865372,2.79092,3583.1,3581.9,2.79174]
[1733239865535,0.41550726,3583.4,3581.7,1.5318]
[1733239865536,0.55,3582.9,3581.7,1.5318]
[1733239865736,0.55,3582.9,3582.1,2.79161]
[1733239865986,0.55,3583.2,3582.1,2.79161]
[1733239866174,0.55,3583.0,3581.9,2.79176]
[1733239866391,0.55,3583.0,3581.7,1.76879817]
[1733239866612,0.55,3583.0,3581.9,2.79179]
[1733239866768,0.55,3582.8,3581.7,0.54930317]
[1733239867164,0.55,3582.8,3581.5,0.56634665]
[1733239867165,2.79185,3581.9,3581.5,0.56634665]
[1733239867385,0.58489905,3581.8,3580.7,2.79267]
[1733239867584,0.58489905,3581.8,3580.6,0.0067922]
[1733239867915,0.80963522,3581.8,3580.6,0.0067922]
[1733239868067,0.55,3581.6,3580.6,0.0067922]
[1733239868266,0.03490341,3581.7,3580.6,0.0067922]
[1733239868267,0.55,3581.4,3580.6,0.0067922]
[1733239868667,0.55,3581.5,3580.6,0.0067922]
[1733239868864,1.27719399,3581.6,3580.6,0.0067922]
[1733239869214,0.80969737,3581.6,3580.6,0.0067922]
[1733239869505,0.55,3581.6,3580.6,0.0067922]
[1733239869720,0.55,3581.6,3580.6,0.28676142]
[1733239870031,0.25969737,3582.0,3581.0,1.6619]
[1733239870181,0.25969737,3582.3,3581.5,2.79205]
[1733239870382,0.25969737,3582.3,3581.0,4.4544]
[1733239870593,1.44355593,3582.4,3582.0,2.79169]
[1733239870792,1.44355593,3582.4,3581.2,2.79236]
[1733239871036,1.44355593,3582.4,3582.3,2.7915]
[1733239871252,1.44355593,3582.4,3582.3,4.3531]
[1733239873235,5.93e-06,3582.4,3582.3,4.3531]
[1733239873734,5.93e-06,3582.4,3582.3,4.90527295]
[1733239875717,5.93e-06,3582.4,3582.3,0.55217295]
[1733239875886,0.55,3583.6,3582.3,0.55217295]
[1733239876087,0.55,3583.4,3582.3,0.55217295]
[1733239876302,2.79051,3583.6,3582.3,0.55217295]
[1733239876303,0.55,3583.2,3582.3,0.55217295]
[1733239876735,0.55,3583.2,3582.3,0.88654125]
[1733239876937,0.55,3583.2,3582.4,2.79142]
[1733239877451,0.55,3583.2,3582.3,0.55217295]
[1733239877745,0.55,3583.6,3582.3,0.55217295]
[1733239878051,0.55,3583.4,3582.5,2.79133]
[1733239878405,2.79036,3583.8,3582.3,0.55217295]
[1733239878406,0.55,3583.2,3582.3,0.55217295]
[1733239878601,0.55,3583.0,3582.3,0.55217295]
[1733239878955,0.55,3582.5,3581.3,2.7922]
[1733239879123,0.55,3582.3,3581.6,0.56694276]
[1733239879460,3.34112,3582.8,3580.8,2.79265]
[1733239879461,2.79166,3582.1,3580.8,2.79265]
[1733239879607,3.55,3582.8,3580.9,0.279265]
[1733239879808,2.79159,3582.2,3580.8,2.79265]
[1733239880013,0.03490022,3582.6,3580.3,1.6489]
[1733239880359,0.03490022,3582.6,3580.5,2.7929]
[1733239880556,0.55376192,3582.6,3580.3,1.6489]
[1733239880767,0.55376192,3582.6,3581.2,2.79232]
[1733239880768,0.03489796,3582.5,3581.2,2.79232]
[1733239880921,0.29432155,3582.5,3581.3,2.79228]
[1733239881124,3.08568155,3582.5,3581.1,2.79243]
[1733239881385,0.55,3582.4,3580.4,2.79298]
[1733239881581,0.55,3582.4,3581.3,2.79226]
[1733239881763,0.55,3582.5,3581.5,2.79212]
[1733239881961,0.55,3582.6,3581.3,2.79225]
[1733239882174,0.55,3582.4,3581.1,0.54856056]
[1733239882476,0.55,3582.2,3581.1,0.54856056]
[1733239882676,0.55,3582.2,3581.1,3.34098056]
[1733239882993,0.55,3582.2,3581.1,0.54856056]
[1733239883202,0.55,3582.0,3579.3,2.7938]
[1733239883494,0.25985661,3582.2,3580.4,0.56560181]
[1733239883495,0.55,3581.5,3580.4,0.56560181]
[1733239883661,0.55,3581.3,3580.4,0.56560181]
[1733239883862,0.55,3581.3,3579.4,2.35216353]
[1733239884097,3.03490775,3581.8,3579.4,1.6198]
[1733239884098,0.55,3580.8,3579.4,1.6198]
[1733239884268,0.55,3580.5,3579.4,1.6198]
[1733239884463,0.55,3580.3,3579.7,0.54548755]
[1733239884679,0.55,3580.0,3578.9,1.6471]
[1733239884902,0.03491769,3579.9,3578.5,2.79446]
[1733239885134,0.55,3579.8,3578.9,0.57118096]
[1733239885262,0.55,3579.8,3578.6,3.234396]
[1733239885463,0.55,3579.8,3579.0,2.79405]
[1733239885710,0.88451025,3580.7,3578.6,0.440026]
[1733239885711,0.55,3580.1,3578.6,0.440026]
[1733239885859,0.55,3579.9,3578.8,3.35522526]
[1733239886066,0.55,3579.9,3578.8,0.56100526]
[1733239886266,0.55,3579.7,3578.4,1.6058]
[1733239886466,0.55,3579.7,3578.4,4.40028]
[1733239886694,0.55,3579.7,3578.7,0.56944773]
[1733239886899,0.29488303,3580.9,3579.5,2.79361]
[1733239887199,4.32983526,3580.8,3578.8,1.84817777]
[1733239887408,2.79295,3580.5,3578.8,0.33637777]
[1733239887580,0.25996676,3580.4,3578.7,0.56944773]
[1733239887776,5.79282,3580.7,3578.7,0.56944773]
[1733239887777,0.55471085,3580.6,3578.7,0.56944773]
[1733239887965,2.8277604,3580.6,3578.7,0.56944773]
[1733239888165,3.60286676,3580.5,3579.0,2.794]
[1733239888480,3.3778166,3580.5,3579.0,2.794]
[1733239888677,4.16686498,3581.1,3579.1,0.2794]
[1733239888678,0.96571681,3580.7,3579.1,0.2794]
[1733239888874,4.16686498,3581.1,3578.4,1.593]
[1733239888875,0.55,3580.4,3579.3,0.56793815]
[1733239889091,4.32983526,3580.8,3579.3,0.56793815]
[1733239889092,0.55,3580.2,3579.3,0.56793815]
[1733239889525,0.03491954,3580.1,3579.3,0.56793815]
[1733239889680,0.55,3580.0,3579.3,0.56793815]
[1733239889876,0.55,3579.8,3579.3,0.56793815]
[1733239891075,2.79325,3580.1,3579.3,0.56793815]
[1733239891076,0.55,3579.6,3579.3,0.56793815]
[1733239891526,0.55,3579.4,3579.3,0.56793815]
[1733239891882,0.0349241,3579.8,3578.4,1.593]
[1733239891883,0.55,3579.7,3578.4,1.593]
[1733239892193,0.55,3579.7,3578.6,2.79438]
[1733239892389,0.55,3579.7,3578.5,0.72181048]
[1733239892390,0.55,3579.9,3578.8,2.79421]
[1733239892739,0.55,3579.9,3578.7,2.79426]
[1733239892919,0.55,3579.7,3578.5,0.72181048]
[1733239893132,0.55,3579.5,3578.5,0.72181048]
[1733239893289,0.55,3579.3,3577.6,5.7951]
[1733239893484,0.55,3579.1,3577.7,4.37602]
[1733239893678,0.55,3578.9,3577.7,1.581]
[1733239894093,0.55,3578.9,3578.6,2.79432]
[1733239894295,0.55,3578.9,3578.4,2.79454]
[1733239894604,0.55,3578.9,3578.0,2.79484]
[1733239894801,0.55,3579.2,3578.2,2.79467]
[1733239895131,0.03493055,3579.1,3577.9,0.55753202]
[1733239895333,0.55,3579.0,3577.9,0.55753202]
[1733239895704,0.36069935,3580.4,3577.9,0.55753202]
[1733239895899,2.7933,3580.0,3578.7,2.79429]
[1733239896097,0.03492508,3579.9,3578.7,2.79429]
[1733239896400,0.03492508,3579.9,3578.2,2.79465]
[1733239896621,2.82830508,3579.9,3578.2,2.79465]
[1733239896858,0.03492508,3579.9,3578.1,2.79477]
[1733239897060,0.58492673,3579.8,3578.2,0.35661552]
[1733239897228,3.0,3580.2,3578.9,2.79408]
[1733239897428,3.03492291,3580.2,3578.3,1.6395]
[1733239897643,6.92405994,3580.2,3578.3,1.6395]
[1733239897863,6.92405994,3580.2,3578.5,2.79443]
[1733239897864,3.88913703,3579.7,3578.5,2.79443]
[1733239898022,3.88913703,3579.7,3577.9,2.16443202]
[1733239898023,2.79392,3579.2,3577.9,3.35244202]
[1733239898229,3.88913703,3579.3,3577.9,0.55753202]